[Event "Kvika Banki League Iceland 2022-23"]
[Site "Reykjavik"]
[Date "2022.10.15"]
[Round "3.17"]
[White "Heimisson, Hilmir Freyr"]
[Black "Dziuba, Marcin"]
[Result "1/2-1/2"]
[ECO "E97"]
[WhiteElo "2293"]
[BlackElo "2569"]
[Annotator "TA"]
[PlyCount "67"]
[EventDate "2022.10.13"]
[EventType "team-tourn"]
[EventCountry "ISL"]
[SourceTitle "playchess.com"]
[Source "ChessBase"]
[SourceQuality "1"]
[TimeControl "5400+30"]

{[%evp 20,67,33,20,77,44,79,81,72,72,72,69,62,51,115,115,124,42,37,5,6,17,14,15,14,14,63,23,32,11,33,0,43,41,45,41,58,39,51,39,44,31,40,0,43,0,45,0,51,0]} 1. c4 {[%emt 0:00:22]} Nf6 {[%emt 0:00:23]} 2. Nc3 {[%emt 0:02:43]} g6 {[%emt 0:00:22]} 3. e4 {[%emt 0:00:59]} d6 {[%emt 0:00:23]} 4. d4 {[%emt 0:00:07]} Bg7 {[%emt 0:00:05]} 5. Nf3 {[%emt 0:00:35]} O-O {[%emt 0:00:10]} 6. Be2 {[%emt 0:00:15]} e5 {[%emt 0:00:13]} 7. O-O {[%emt 0:00:26]} Nc6 {[%emt 0:07:27]} 8. d5 {[%emt 0:00:11]} Ne7 {[%emt 0:00:05]} 9. b4 {[%emt 0:00:11]} a5 {[%emt 0:00:43]} 10. bxa5 {[%emt 0:00:09]} Rxa5 {[%emt 0:01:24]} 11. a4 {[%emt 0:00:12]} c5 {[%emt 0:03:20] E97: King's Indian: Classical Main Line (6...e5 7 0-0 Nc6): 8 Be3 and 8 d5 Ne7, not 9 Ne1.} (11... Nh5 $11) 12. Ra3 {[%emt 0:06:04]} Nh5 {[%emt 0:05:25][%cal Bf6h5,Bh5f4,Bf4h3][%mdl 32] 12...Ne8 is becoming the main line.} 13. Re1 {[%emt 0:02:18]} h6 {[%emt 0:03:45] White is better.} 14. Nd2 {[%emt 0:06:20]} Nf4 {[%emt 0:00:50] [#]} 15. Bf1 $1 {[%emt 0:00:45]} Ra6 {[%emt 0:04:50]} 16. Nb5 {[%emt 0:02:38] [#]} h5 $146 {[%emt 0:04:57]} (16... Nh5 $14) ({Predecessor:} 16... g5 17. g3 Nfg6 18. Be2 f5 19. exf5 Nxf5 20. Bh5 Nh8 21. Rf3 Nd4 22. Nxd4 cxd4 {1-0 (30) Radovanovic,M (2438)-Brenjo,S (2409) Vrnjacka Banja 2022}) 17. Nf3 $16 {[%emt 0:05:58]} f6 {[%emt 0:04:13][%cal Bf7f6,Bf6f5,Bf5e4][%mdl 32]} 18. g3 {[%emt 0:10:52]} (18. h4 $16) 18... Nh3+ $14 {[%emt 0:01:28]} 19. Kg2 {[%emt 0:00:30]} (19. Bxh3 $5 Bxh3 20. Qc2 $11) 19... f5 {[%emt 0:23:16]} 20. Ng5 {[%emt 0:08:10]} Nxg5 {[%emt 0:01:26]} 21. Bxg5 {[%emt 0:00:08]} fxe4 {[%emt 0:01:33]} 22. Nc3 {[%emt 0:09:48] Active counter play!} Bg4 {[%emt 0:04:05]} (22... e3 $11 23. Rxe3 Qe8) 23. Qb1 {[%emt 0:02:28]} (23. Be2 $5 {[%cal Re2g4]}) 23... Rb6 {[%emt 0:01:40]} 24. Rb3 {[%emt 0:02:57] Dancing on a razor blade.} Rxb3 {[%emt 0:00:12]} 25. Qxb3 {[%emt 0:00:17]} Qd7 {[%emt 0:02:12] [#] ...Nf5 is the strong threat.} 26. Bxe7 {[%emt 0:04:29]} Qxe7 {[%emt 0:00:31]} 27. Nxe4 {[%emt 0:00:20]} Rf7 {[%emt 0:09:02]} 28. Kg1 {[%emt 0:02:40]} h4 {[%emt 0:01:50]} 29. Bg2 {[%emt 0:01:55]} Bf5 {[%emt 0:02:02]} 30. Qb6 {[%emt 0:09:39]} Bf8 {[%emt 0:00:26]} 31. Qb3 {[%emt 0:03:47]} Bh6 {[%emt 0:00:55]} 32. Qb6 {[%emt 0:00:42]} Bf8 $1 {[%emt 0:00:36]} 33. Qb3 {[%emt 0:00:30]} Bh6 {[%emt 0:00:09]} 34. Qb6 {[%emt 0:01:06] Weighted Error Value: White=0.18 (very precise) /Black=0.18 (very precise)} (34. Rb1 $14) 1/2-1/2

[Event "Kvika Banki League Iceland 2022-23"]
[Site "Reykjavik"]
[Date "2022.10.15"]
[Round "3.18"]
[White "Pakleza, Zbigniew"]
[Black "Jensson, Einar Hjalti"]
[Result "1/2-1/2"]
[ECO "B13"]
[WhiteElo "2496"]
[BlackElo "2331"]
[Annotator "TA"]
[PlyCount "118"]
[EventDate "2022.10.13"]
[EventType "team-tourn"]
[EventCountry "ISL"]
[SourceTitle "playchess.com"]
[Source "ChessBase"]
[SourceQuality "1"]
[TimeControl "5400+30"]

{[%evp 14,118,4,-25,-21,-28,-18,-58,0,0,0,0,-17,0,0,-10,-15,-14,27,31,25,20,18,19,18,28,58,30,31,13,14,10,148,161,153,150,138,58,138,145,172,172,131,77,224,233,233,235,245,231,231,225,210,195,481,434,567,468,1783,1679,1064,1569,1315,1174,846,0,1027,1021,777,426,479,401,233,143,143,143,143,143,143,143,143,143,143,143,143,143,143,143,143,143,143,0,0,0,0,0,0,0,0,0,0,0,0,0,0,0,0]} 1. Nf3 {[%emt 0:00:02]} d5 {[%emt 0:03:50]} 2. d4 {[%emt 0:00:30]} c5 {[%emt 0:01:27]} 3. e3 {[%emt 0:00:39]} Nc6 {[%emt 0:00:56]} 4. c4 {[%emt 0:00:15]} cxd4 {[%emt 0:01:14]} 5. exd4 {[%emt 0:03:51]} Nf6 {[%emt 0:01:48]} 6. Nc3 {[%emt 0:00:46]} Bg4 {[%emt 0:03:05]} 7. Be3 {[%emt 0:14:54]} e6 {[%emt 0:02:05]} 8. Be2 {[%emt 0:05:41]} dxc4 {[%emt 0:01:23] B13: Caro-Kann: Exchange Variation and Panov-Botvinnik Attack.} 9. Bxc4 {[%emt 0:02:36]} Be7 {[%emt 0:04:01]} 10. h3 {[%emt 0:02:35]} Bh5 {[%emt 0:00:17] Black is slightly better.} (10... Bxf3 {looks sharper.} 11. Qxf3 Nxd4 12. Bxd4 Qxd4 13. Qxb7 O-O) 11. O-O {[%emt 0:09:22]} O-O {[%emt 0:00:21]} 12. g4 {[%emt 0:09:18]} Bg6 {[%emt 0:03:49]} 13. Ne5 {[%emt 0:00:02]} Rc8 {[%emt 0:04:38]} 14. Nxg6 {[%emt 0:00:46]} hxg6 {[%emt 0:00:18] [#]} 15. Bb3 $146 {[%emt 0:09:17]} ({Predecessor:} 15. Rc1 Bd6 16. g5 Nh5 17. Ne4 Bb8 18. Qg4 Ne7 19. Rfd1 Nd5 20. Bxd5 Qxd5 21. Nc3 {0-1 (35) Blazkova,P (2224)-Markovic,I (2194) Czech Republic 2008}) 15... Qd7 {[%emt 0:27:42]} 16. d5 {[%emt 0:03:46]} Nxd5 {[%emt 0:00:31]} 17. Nxd5 {[%emt 0:00:40]} exd5 {[%emt 0:00:05]} 18. Qxd5 {[%emt 0:00:16]} Qxd5 {[%emt 0:00:21]} 19. Bxd5 {[%emt 0:00:01]} Bf6 {[%emt 0:00:29]} 20. g5 {[%emt 0:07:38]} Be5 {[%emt 0:01:58]} 21. Rad1 {[%emt 0:02:42]} b6 {[%emt 0:01:53]} ({But not} 21... Bxb2 22. Rb1 Be5 23. Rxb7 $14) 22. b3 {[%emt 0:08:09]} Rfd8 {[%emt 0:05:32]} (22... Nb4 $11 {keeps the balance.}) 23. Bxc6 $16 {[%emt 0:04:53] A strong pair of Bishops.} Rxd1 {[%emt 0:00:09]} 24. Rxd1 {[%emt 0:00:01]} Rxc6 {[%emt 0:00:09][%mdl 4096] Endgame KRB-KRB} 25. Rd8+ {[%emt 0:00:04]} Kh7 {[%emt 0:00:09]} 26. Rd7 $1 {[%emt 0:00:14]} Rc7 {[%emt 0:00:21]} 27. Rxc7 {[%emt 0:00:28]} Bxc7 $18 {[%emt 0:00:02] KB-KB} 28. Kg2 {[%emt 0:00:42]} (28. Kf1 $142) 28... Kg8 {[%emt 0:03:10]} (28... f5 $16) 29. Kf3 {[%emt 0:00:10] And now Ke4 would win.} Kf8 {[%emt 0:00:05]} 30. Ke4 $1 {[%emt 0:00:48]} Ke8 {[%emt 0:01:34]} 31. Kd5 {[%emt 0:02:50] Kc6 is the strong threat.} Kd7 {[%emt 0:00:03] [#]} 32. Bd4 $1 {[%emt 0:00:31]} Bd8 {[%emt 0:00:06]} 33. h4 {[%emt 0:00:22][%cal Bh3h4,Bh4g5,Bg5g6][%mdl 32]} ({Weaker is} 33. Bxg7 Bxg5 34. Be5 a6 $11) 33... f6 $2 {[%emt 0:00:48]} (33... Be7 34. Bxg7 Bb4) 34. f4 {[%emt 0:00:05]} Be7 {[%emt 0:15:39]} 35. a4 {[%emt 0:03:19]} fxg5 {[%emt 0:08:17]} (35... Bd8 $142 36. Bb2 Be7) 36. hxg5 {[%emt 0:00:08]} Bd6 {[%emt 0:00:58] [#]} 37. Be5 $1 {[%emt 0:03:40]} Bf8 {[%emt 0:00:08]} 38. Bc3 {[%emt 0:00:19]} Bd6 {[%emt 0:00:15]} 39. Be5 {[%emt 0:03:55]} Bf8 {[%emt 0:00:08]} 40. f5 {[%emt 0:02:33]} gxf5 {[%emt 0:00:15]} 41. g6 {[%emt 0:00:01]} a6 {[%emt 0:01:15]} 42. Bd4 {[%emt 0:00:40]} b5 {[%emt 0:00:44]} (42... f4 $142) 43. axb5 {[%emt 0:00:09]} axb5 {[%emt 0:00:01]} 44. Ke5 {[%emt 0:00:11]} f4 {[%emt 0:04:25]} 45. Kxf4 {[%emt 0:00:06]} Ke6 {[%emt 0:00:03]} 46. Ke4 {[%emt 0:00:17] White is more active.} Bb4 {[%emt 0:00:38]} 47. Bxg7 {[%emt 0:00:24]} Bd2 {[%emt 0:01:30]} 48. Bd4 {[%emt 0:00:20]} b4 {[%emt 0:00:42]} 49. Kd3 {[%emt 0:02:28]} Be1 {[%emt 0:00:34]} 50. Kc4 {[%emt 0:01:13]} Bd2 {[%emt 0:00:13]} 51. Bb2 {[%emt 0:00:17]} Be1 {[%emt 0:00:09]} 52. Bg7 {[%emt 0:00:14]} (52. Ba1 $16) 52... Kf5 $11 {[%emt 0:00:31] The position is equal.} 53. Bf8 {[%emt 0:00:04]} Kxg6 {[%emt 0:00:09]} 54. Bxb4 {[%emt 0:00:04]} Bh4 {[%emt 0:01:08]} 55. Bc3 {[%emt 0:00:16] Black must now prevent b4.} Kf7 {[%emt 0:02:59]} 56. Kd5 {[%emt 0:00:04]} Be7 {[%emt 0:00:42]} 57. Bd4 {[%emt 0:00:10] Strongly threatening Bc5.} Bb4 {[%emt 0:00:23]} 58. Bc5 {[%emt 0:00:05]} Be1 {[%emt 0:00:28]} 59. b4 {[%emt 0:00:02]} Bxb4 {[%emt 0:00:12] Blacks defense is rewarded with a draw.  Weighted Error Value: White=0.19 (very precise) /Black=0.27 (precise)} 1/2-1/2

[Event "Kvika Banki League Iceland 2022-23"]
[Site "Reykjavik"]
[Date "2022.10.15"]
[Round "3.19"]
[White "Gislason, Gudmundur"]
[Black "Hjartarson, Johann"]
[Result "1/2-1/2"]
[ECO "D02"]
[WhiteElo "2293"]
[BlackElo "2468"]
[Annotator "TA"]
[PlyCount "48"]
[EventDate "2022.10.13"]
[EventType "team-tourn"]
[EventCountry "ISL"]
[SourceTitle "playchess.com"]
[Source "ChessBase"]
[SourceQuality "1"]
[TimeControl "5400+30"]

{[%evp 11,48,-7,25,16,27,15,27,17,20,0,27,8,12,12,12,0,11,0,47,0,0,0,0,0,0,0,0,0,0,0,0,-173,-172,-342,-335,-319,-316,-294,-194]} 1. d4 {[%emt 0:00:02]} Nf6 {[%emt 0:00:09]} 2. Nf3 {[%emt 0:00:04]} g6 {[%emt 0:00:21]} 3. g3 {[%emt 0:00:10]} Bg7 {[%emt 0:01:28]} 4. Bg2 {[%emt 0:00:08]} O-O {[%emt 0:00:09]} 5. O-O {[%emt 0:00:06]} d5 {[%emt 0:01:16]} 6. b3 {[%emt 0:03:01]} c6 {[%emt 0:02:08]} 7. Bb2 {[%emt 0:00:09] D02: 1 d4 d5 2 Nf3 sidelines, including 2...Nf6 3 g3 and 2...Nf6 3 Bf4.} a5 {[%emt 0:04:40]} 8. a4 {[%emt 0:00:28]} Bf5 {[%emt 0:03:58]} 9. e3 {[%emt 0:02:14] White has an edge.} Na6 {[%emt 0:03:11] [#]} 10. Ne5 $146 {[%emt 0:01:47]} ({Predecessor:} 10. Na3 Rc8 11. Qe2 Qb6 12. Rfc1 Rfd8 13. h3 c5 14. Nb5 Be4 15. Nd2 Bxg2 16. Kxg2 {½-½ (65) Rahman,Z (2419)-Koustav,C (2431) Dhaka 2021}) 10... Qc8 {[%emt 0:07:19]} 11. Nc3 {[%emt 0:14:58]} Bh3 {[%emt 0:08:13]} 12. Ba3 {[%emt 0:01:59]} Bxg2 {[%emt 0:01:43]} 13. Kxg2 {[%emt 0:00:09]} Re8 {[%emt 0:00:25]} 14. Qf3 {[%emt 0:00:51]} Qf5 {[%emt 0:00:39]} (14... Qe6 $11) 15. g4 {[%emt 0:13:12]} (15. Qxf5 $14 {is more appropriate.} gxf5 16. Ne2) 15... Qxf3+ {[%emt 0:00:57]} 16. Kxf3 {[%emt 0:00:08]} c5 {[%emt 0:01:26]} 17. g5 {[%emt 0:05:27]} cxd4 {[%emt 0:01:13]} 18. gxf6 {[%emt 0:01:14]} exf6 {[%emt 0:00:15]} 19. Nxg6 {[%emt 0:03:17]} hxg6 {[%emt 0:14:05]} 20. Nxd5 {[%emt 0:00:11]} Rad8 {[%emt 0:02:52]} 21. Ne7+ {[%emt 0:17:57] [#]} (21. Nb6 $11) 21... Kh7 $19 {[%emt 0:00:31] Strongly threatening ...Nb4.} 22. Rfe1 $2 {[%emt 0:09:36]} (22. exd4 Nb4 23. c3) 22... Nb4 {[%emt 0:01:59] Black has a decisive advantage.} 23. Bxb4 {[%emt 0:01:12]} axb4 {[%emt 0:00:11]} 24. exd4 {[%emt 0:00:39]} Rd7 {[%emt 0:01:03] Weighted Error Value: White=0.40/Black=0.08 (flawless)} ({Not} 24... Rxd4 25. a5 $17) 1/2-1/2

[Event "Kvika Banki League Iceland 2022-23"]
[Site "Reykjavik"]
[Date "2022.10.15"]
[Round "3.20"]
[White "Thorfinnsson, Bragi"]
[Black "Briem, Benedikt"]
[Result "1-0"]
[ECO "C00"]
[WhiteElo "2421"]
[BlackElo "2208"]
[Annotator "TA"]
[PlyCount "79"]
[EventDate "2022.10.13"]
[EventType "team-tourn"]
[EventCountry "ISL"]
[SourceTitle "playchess.com"]
[Source "ChessBase"]
[SourceQuality "1"]
[TimeControl "5400+30"]

{[%evp 15,79,-18,-10,-35,-12,-48,-48,-53,-14,-20,0,-22,-7,-15,14,0,18,-6,0,0,-6,-7,0,-37,-7,-29,59,64,54,38,41,0,29,0,0,0,0,0,0,0,0,0,0,-61,0,0,153,143,466,445,652,589,625,604,4814,4802,2187,1513,29975,29977,29975,29975,29986,29987,29995,29996]} 1. e4 {[%emt 0:00:03]} e6 {[%emt 0:03:29]} 2. d3 {[%emt 0:01:07]} d5 {[%emt 0:02:30]} 3. Nd2 {[%emt 0:00:09]} Nf6 {[%emt 0:01:02]} 4. g3 {[%emt 0:01:00]} Be7 {[%emt 0:03:43]} 5. Bg2 {[%emt 0:00:45]} c5 {[%emt 0:01:57]} 6. Ngf3 {[%emt 0:01:32]} Nc6 {[%emt 0:01:40]} 7. O-O {[%emt 0:00:48]} O-O {[%emt 0:11:52]} 8. Qe2 {[%emt 0:04:52]} b5 {[%emt 0:06:36][%cal Bb7b5,Bb5b4][%mdl 32]} 9. c3 {[%emt 0:13:25] C00: French: Unusual White 2nd moves.} b4 {[%emt 0:09:46]} 10. e5 {[%emt 0:01:28]} Nd7 {[%emt 0:00:29]} 11. c4 {[%emt 0:00:25] [#] Black is slightly better.} dxc4 $146 {[%emt 0:08:51]} (11... a5 {seems wilder.} 12. a4 bxa3 13. b3 a2) ({Predecessor:} 11... Nb6 12. h4 a5 13. b3 a4 14. Rb1 Ra7 15. Re1 Rd7 16. Bf1 Bb7 17. Bb2 Qa8 {0-1 (40) Stefanopoulos,O (2267)-Mastrovasilis,D (2462) Kavala 2002}) 12. dxc4 {[%emt 0:00:18]} Qc7 {[%emt 0:01:55]} 13. Nb3 {[%emt 0:09:04]} Bb7 {[%emt 0:12:12][%cal Rc6e5]} 14. Bf4 {[%emt 0:02:04]} Nb6 {[%emt 0:01:53]} 15. h4 {[%emt 0:07:25]} Rfd8 {[%emt 0:03:59]} 16. Rac1 {[%emt 0:00:42]} (16. Ng5 {feels hotter.} Nd4 17. Nxd4 Rxd4 18. b3) 16... a5 {[%emt 0:03:20][%cal Ba7a5,Ba5a4][%mdl 32]} 17. h5 {[%emt 0:00:47]} h6 {[%emt 0:01:10]} 18. Rfe1 {[%emt 0:04:24]} Bf8 {[%emt 0:02:16]} 19. g4 {[%emt 0:02:57]} a4 {[%emt 0:02:20]} 20. Nbd2 {[%emt 0:00:33]} Nd4 {[%emt 0:02:24]} ({Black should try} 20... Be7 $11) 21. Nxd4 $14 {[%emt 0:05:13]} Rxd4 {[%emt 0:00:33]} 22. Bxb7 {[%emt 0:01:46]} Qxb7 {[%emt 0:00:18]} 23. Ne4 {[%emt 0:00:18]} (23. Be3 $5 {[%cal Re3d4]}) 23... Qa6 {[%emt 0:01:56][%cal Rd4c4]} 24. b3 {[%emt 0:01:41]} (24. Qf3 $5 {[%cal Rg4g5]}) 24... axb3 {[%emt 0:00:45]} 25. axb3 {[%emt 0:00:05]} Qa2 {[%emt 0:01:27]} 26. Qf3 {[%emt 0:01:44]} Ra3 $1 {[%emt 0:00:37]} 27. Re3 {[%emt 0:02:29]} Qb2 {[%emt 0:01:45]} 28. Rce1 {[%emt 0:00:35]} Qc2 {[%emt 0:05:56]} 29. g5 {[%emt 0:08:36] [#]} (29. Nd6 $11) 29... hxg5 {[%emt 0:01:15]} (29... Nxc4 $1 $15 30. bxc4 Rxe3 31. Qxe3 hxg5 32. Bxg5 b3) 30. Bxg5 $11 {[%emt 0:01:00][%cal Oh5h6]} Nd7 $2 {[%emt 0:01:41]} (30... Nxc4 $1 $11 31. bxc4 Rxe3 32. Rxe3 (32. Qxe3 b3 $11) 32... b3) 31. Bf4 $16 {[%emt 0:03:04]} Kh8 $2 {[%emt 0:01:50][%mdl 8192] A mistake that costs the game.} (31... Rxe4 $16 {is tougher.} 32. Qxe4 Qxe4 33. Rxe4 Rxb3) 32. h6 $18 {[%emt 0:06:36] And now hxg7+ would win.} gxh6 {[%emt 0:03:00]} (32... Rxe4 $142 33. Rxe4 Rxb3) 33. Qh5 {[%emt 0:00:51][%csl LRf7,LRh6]} Rxe4 {[%emt 0:01:59]} 34. Rxe4 {[%emt 0:00:35]} Ra1 {[%emt 0:00:20]} 35. Rxa1 {[%emt 0:03:23][%cal Oa1d1] [#] Rd1! would kill now.} Qxe4 {[%emt 0:00:06]} 36. Qxf7 {[%emt 0:00:08] aiming for Rd1.} Qf3 {[%emt 0:00:44] Prevents Rd1.} 37. Ra7 {[%emt 0:01:45] White mates.} Qg4+ {[%emt 0:00:44]} 38. Bg3 {[%emt 0:00:19]} Qd1+ {[%emt 0:00:22]} 39. Kh2 {[%emt 0:00:20]} Qh5+ {[%emt 0:00:19]} 40. Qxh5 {[%emt 0:00:07] Weighted Error Value: White=0.10 (very precise) /Black=0.61} 1-0

[Event "Kvika Banki League Iceland 2022-23"]
[Site "Reykjavik"]
[Date "2022.10.15"]
[Round "3.21"]
[White "Briem, Stephan"]
[Black "Jakubiec, Artur"]
[Result "0-1"]
[ECO "E61"]
[WhiteElo "2083"]
[BlackElo "2435"]
[Annotator "TA"]
[PlyCount "106"]
[EventDate "2022.10.13"]
[EventType "team-tourn"]
[EventCountry "ISL"]
[SourceTitle "playchess.com"]
[Source "ChessBase"]
[SourceQuality "1"]
[TimeControl "5400+30"]

{[%evp 14,106,29,25,60,63,71,65,79,81,77,66,79,20,32,40,41,32,35,34,29,10,74,18,9,16,20,4,95,80,90,73,146,160,156,0,0,0,0,3,80,60,71,13,60,-9,-9,-9,-2,-2,-2,-15,-15,-15,-9,-9,-9,-25,-2,-2,-2,-2,-2,-9,-2,-2,-2,-58,-58,-193,-25,-25,-16,-16,-16,-20,-58,-153,-145,-153,-143,-1501,-1295,-1206,-1080,-6985,-6502,-6079,-880,-9959,-9959,-29984,-29985,-29985,-29986]} 1. d4 {[%emt 0:00:04]} Nf6 {[%emt 0:00:31]} 2. c4 {[%emt 0:00:41]} d6 {[%emt 0:00:19]} 3. Nf3 {[%emt 0:02:15]} g6 {[%emt 0:00:41]} 4. Nc3 {[%emt 0:00:15]} Bg7 {[%emt 0:00:10]} 5. Bg5 {[%emt 0:00:33]} h6 {[%emt 0:02:22]} 6. Bh4 {[%emt 0:00:19]} O-O {[%emt 0:01:49]} 7. e3 {[%emt 0:00:47]} c6 {[%emt 0:08:08]} 8. Be2 {[%emt 0:05:18]} Nfd7 {[%emt 0:05:45] [#] E61: King's Indian: Early deviations for White, including Smyslov System.} 9. Qc2 $146 {[%emt 0:08:22]} ({Predecessor:} 9. g4 Re8 10. Qc2 c5 11. d5 Na6 12. Nd2 Rb8 13. f4 b5 14. cxb5 Nc7 15. e4 a6 16. a4 axb5 17. axb5 {0-1 (33) Lputian,S (2495)-Lanka,Z (2345) Jurmala 1983}) 9... a6 {[%emt 0:04:08]} 10. O-O {[%emt 0:02:26]} b5 {[%emt 0:08:08] White is slightly better.} 11. Rfd1 {[%emt 0:01:00]} Nf6 {[%emt 0:05:50]} 12. h3 {[%emt 0:02:35]} Nbd7 {[%emt 0:05:14]} 13. b4 {[%emt 0:05:46]} ({White should try} 13. Rac1 $16) 13... bxc4 $11 {[%emt 0:01:34]} 14. Bxc4 {[%emt 0:00:24]} a5 {[%emt 0:04:46]} 15. a3 {[%emt 0:10:33]} Nb6 {[%emt 0:02:41]} 16. Bb3 {[%emt 0:03:06] Bxf6 is the strong threat.} Nfd5 {[%emt 0:09:17]} 17. e4 {[%emt 0:10:14]} Nf4 {[%emt 0:01:30]} (17... axb4 $11 {remains equal.} 18. exd5 (18. Nxd5 cxd5 19. axb4 Be6 $11) 18... Bf5) 18. Na4 {[%emt 0:06:59]} (18. Bg3 $16 Ne6 19. e5) 18... Nxa4 {[%emt 0:03:15]} 19. Bxa4 {[%emt 0:00:30]} axb4 {[%emt 0:00:40]} 20. axb4 {[%emt 0:02:38]} g5 {[%emt 0:06:31]} (20... Bb7 $11 {keeps the balance.}) 21. Bg3 $16 {[%emt 0:01:01]} Nh5 {[%emt 0:00:05]} 22. Bh2 {[%emt 0:06:23]} (22. Bxc6 Rxa1 23. Rxa1 Nxg3 24. fxg3 Qb6 $11) (22. Qxc6 $6 Ra6 23. Qb5 Nxg3 24. fxg3 Rb6 $11) 22... g4 {[%emt 0:00:32]} (22... Qb6 $142) 23. hxg4 {[%emt 0:03:04]} Bxg4 {[%emt 0:00:06] [#]} 24. Bxc6 $2 {[%emt 0:01:27]} (24. Qxc6 $6 e5 $14) (24. e5 $1 $16) 24... Rxa1 $11 {[%emt 0:00:43]} 25. Rxa1 {[%emt 0:00:02]} Bxf3 {[%emt 0:01:54][%mdl 64] Remove Defender} 26. gxf3 {[%emt 0:00:10] Black must now prevent Ra8.} Qb6 {[%emt 0:00:48]} (26... Bxd4 $11 27. Ra8 Qb6) 27. e5 {[%emt 0:18:48] Hoping for b5.} ({Of course not} 27. Ra5 Rc8 28. Rxh5 Rxc6 $11) 27... Qxb4 {[%emt 0:10:37]} 28. Qf5 {[%emt 0:07:19]} (28. f4 $16) 28... Qc3 {[%emt 0:01:17]} (28... Qxd4 $11 29. Rb1 Qh4) 29. Ra8 {[%emt 0:01:11]} (29. Ra6 $14 Qc1+ 30. Kg2 Qg5+ 31. Qxg5 hxg5 32. exd6 exd6 33. Bxd6) 29... Qxc6 {[%emt 0:01:54] Dancing on a razor blade.} (29... Qc1+ {keeps more tension.} 30. Kg2 Qxc6 31. Rxf8+ Bxf8 32. Qxh5 d5) 30. Rxf8+ {[%emt 0:00:02]} Kxf8 {[%emt 0:00:14]} 31. Qxh5 {[%emt 0:00:13][%mdl 4096] Endgame KQB-KQB} d5 {[%emt 0:00:46]} 32. Qg4 {[%emt 0:01:00]} Qg6 {[%emt 0:01:19]} 33. Bg3 {[%emt 0:00:22][%cal Rg4c8]} Kg8 {[%emt 0:00:30]} 34. Bh4 {[%emt 0:00:39]} e6 {[%emt 0:00:10]} 35. Kf1 {[%emt 0:00:35]} Kh7 {[%emt 0:00:29]} 36. Be7 {[%emt 0:00:40]} h5 {[%emt 0:00:56]} 37. Qh4 {[%emt 0:00:31]} Bh6 {[%emt 0:00:17]} 38. Bf6 {[%emt 0:00:14]} Qf5 {[%emt 0:01:46]} 39. Kg2 {[%emt 0:00:26]} Bd2 {[%emt 0:00:36]} 40. Kg3 {[%emt 0:00:59]} ({Much worse is} 40. Qg3 Qg6 41. Kh3 Qxg3+ 42. fxg3 Be3 $19) (40. Qh1 $11) 40... Kh6 $15 {[%emt 0:02:37] Threatens to win with ...Bg5.} 41. Kg2 {[%emt 0:00:36] [#]} (41. Qh1 $1 $15) 41... Qf4 $2 {[%emt 0:02:44]} (41... Qg6+ $1 $19 42. Kh3 Qg1) 42. Qh3 $1 $11 {[%emt 0:00:29]} Bc3 {[%emt 0:00:50]} (42... Qxd4 {gets mated.} 43. Qg3) 43. Kh1 {[%emt 0:00:26]} Qc1+ {[%emt 0:01:26]} 44. Kh2 {[%emt 0:00:17] Threatening mate with Qg3.} Bd2 {[%emt 0:01:18]} (44... Bxd4 45. Qg3 Bxe5 46. Bxe5 Qg5 47. Bf4) 45. Qg2 {[%emt 0:00:47]} (45. Kg2 $15) 45... Bg5 $17 {[%emt 0:00:16]} 46. Bxg5+ {[%emt 0:00:31]} Qxg5 {[%emt 0:00:06] KQ-KQ} 47. Qf1 {[%emt 0:00:24][%mdl 8192]} (47. Qg3 $17) 47... Qf4+ {[%emt 0:00:14]} 48. Kg2 {[%emt 0:00:01]} Qxd4 {[%emt 0:00:17]} 49. Qe2 {[%emt 0:01:03]} Qf4 {[%emt 0:00:18]} 50. Qb2 {[%emt 0:00:13]} h4 {[%emt 0:01:30][%cal Bh5h4,Bh4h3][%mdl 32]} 51. Qb8 {[%emt 0:00:50]} h3+ {[%emt 0:00:37]} 52. Kg1 {[%emt 0:00:26]} Qg5+ {[%emt 0:00:26]} 53. Kf1 {[%emt 0:00:02]} Kg7 {[%emt 0:00:12] What a bad dream for White.  Weighted Error Value: White=0.74/Black=0.23 (precise)} 0-1